fUSD/lending_fUSD_20260128
["ID","MTS","AMOUNT","RATE_DAILY","PERIOD"]
[403833873,1769577040763,-131.48798617,0.00014991,2]
[403833878,1769577040830,-501.65032113,0.00014991,2]
[403833888,1769577043450,-50.58158871,0.00014991,2]
[403833889,1769577043653,-119.44585843,0.00014991,2]
[403833890,1769577043663,-803.16575444,0.00014991,2]
[403833891,1769577043674,-803.16575444,0.00014991,2]
[403833892,1769577043683,-803.16575444,0.00014991,2]
[403833893,1769577043694,-803.16575444,0.00014991,2]
[403833894,1769577043704,-803.16575444,0.00014991,2]
[403833895,1769577043715,-803.16575444,0.00014991,2]
[403833896,1769577043725,-803.16575444,0.00014991,2]
[403833897,1769577043734,-803.16575444,0.00014991,2]
[403833898,1769577043744,-803.16575444,0.00014991,2]
[403833899,1769577043755,-803.16575444,0.00014991,2]
[403833900,1769577043765,-803.16575444,0.00014991,2]
[403833901,1769577043774,-803.16575444,0.00014991,2]
[403833902,1769577043783,-803.16575444,0.00014991,2]
[403833903,1769577043793,-803.16575444,0.00014991,2]
[403833904,1769577043803,-803.16575444,0.00014991,2]
[403833905,1769577043812,-803.16575444,0.00014991,2]
[403833906,1769577043822,-803.16575444,0.00014991,2]
[403833907,1769577043831,-803.16575444,0.00014991,2]
[403833908,1769577043842,-803.16575444,0.00014991,2]
[403833909,1769577043852,-803.16575444,0.00014991,2]
[403833910,1769577043862,-803.16575444,0.00014991,2]
[403833911,1769577043873,-803.16575444,0.00014991,2]
[403833912,1769577043883,-803.16575444,0.00014991,2]
[403833913,1769577043892,-803.16575444,0.00014991,2]
[403833914,1769577043902,-803.16575444,0.00014991,2]
[403833915,1769577043912,-803.16575444,0.00014991,2]
[403833916,1769577043923,-803.16575444,0.00014991,2]
[403833917,1769577043933,-803.16575444,0.00014991,2]
[403833918,1769577043943,-803.16575444,0.00014991,2]
[403833919,1769577043954,-803.16575444,0.00014991,2]
[403833920,1769577043963,-803.16575444,0.00014991,2]
[403833921,1769577043973,-803.16575444,0.00014991,2]
[403833922,1769577043983,-803.16575444,0.00014991,2]
[403833923,1769577043992,-803.16575444,0.00014991,2]
[403833924,1769577044003,-53528.64359073,0.00014992,2]
[403833928,1769577049514,161.9194834,0.00014492,2]
[403833929,1769577062537,5533.0,0.000155,5]
[403833930,1769577062756,5533.0,0.000154,3]
[403833931,1769577092200,1730.484,0.00014692,2]
[403833932,1769577092242,155.984,0.00014692,2]
[403833933,1769577094072,5533.0,0.000154,5]
[403833934,1769577094276,5533.0,0.000153,3]
[403833935,1769577102372,172.27340265,0.00014891,2]
[403833936,1769577125615,5071.0,0.000153,5]
[403833937,1769577162109,402.36325455,0.00014892,2]
[403833938,1769577199419,242.05151373,0.00014893,2]
[403833940,1769577227174,228.99409169,0.00014892,2]
[403833941,1769577295515,2500.0,0.00014892,2]
[403833942,1769577411736,172.27340265,0.00014887,2]
[403833947,1769577452030,2052.0685,0.00014892,2]
[403833955,1769577550009,362.12692914,0.00014892,2]
[403833966,1769577684603,1726.552638,0.00014943,2]
[403833967,1769577692146,1719.73,0.00014692,2]
[403833968,1769577692204,162.123,0.00014692,2]
[403833971,1769577737261,206.09468253,0.00014892,2]
[403833979,1769577752727,3771.31425033,0.00014892,2]
[403833980,1769577752754,1975.09204967,0.00014892,2]
[403833993,1769577836572,5000.0,0.00014942,2]
[403833999,1769577876780,3024.91795033,0.00014942,2]
[403834000,1769577876806,1975.08204967,0.00014942,2]
[403834004,1769577925753,1028.79992716,0.000108,2]
[403834006,1769577935334,8971.21007284,9e-05,2]
[403834007,1769577935357,6028.78992716,9e-05,2]
[403834008,1769577941725,325.91423619,0.00014892,2]
[403834012,1769578008142,3645.30583665,0.00014884,2]
[403834013,1769578008171,10000.01,0.00014884,2]
[403834014,1769578008198,10000.01,0.00014884,2]
[403834015,1769578008225,10000.01,0.00014884,2]
[403834016,1769578008253,10000.01,0.00014884,2]
[403834017,1769578008280,10000.01,0.00014884,2]
[403834018,1769578008308,10000.01,0.00014884,2]
[403834019,1769578008334,10000.01,0.00014884,2]
[403834020,1769578008362,10000.01,0.00014884,2]
[403834021,1769578008389,10000.01,0.00014884,2]
[403834025,1769578021320,300.0,0.00014883,2]
[403834026,1769578021594,150.0,0.00014883,2]
[403834027,1769578023137,233.0,0.00014883,2]
[403834028,1769578026606,300.0,0.000148,5]
[403834029,1769578028700,600.0,0.000149,5]
[403834032,1769578045092,1734.8925835,0.00014884,2]
[403834034,1769578063605,3381.65315455,0.00013,2]
[403834035,1769578063627,776.20291922,0.00013,2]
[403834036,1769578064692,-9300.81547316,0.00014884,2]
[403834037,1769578064781,-10000.01,0.00014884,2]
[403834038,1769578064905,-10000.01,0.00014884,2]
[403834039,1769578065068,-10000.01,0.00014884,2]
[403834040,1769578065189,-10000.01,0.00014884,2]
[403834041,1769578065288,-10000.01,0.00014884,2]
[403834044,1769578067418,-10000.01,0.00014884,2]
[403834045,1769578068245,-10000.01,0.00014884,2]
[403834046,1769578068363,-10000.01,0.00014884,2]
[403834047,1769578068480,-10000.01,0.00014884,2]
[403834048,1769578070111,-10000.01,0.00014884,2]
[403834049,1769578070422,-10000.01,0.00014884,2]
[403834050,1769578070710,-10000.01,0.00014884,2]
[403834051,1769578070928,-10000.01,0.00014884,2]
[403834052,1769578071125,-10000.01,0.00014884,2]
[403834053,1769578071342,-10000.01,0.00014884,2]
[403834054,1769578101782,291.0,0.00014883,2]
[403834055,1769578103863,889.22141191,0.00014884,2]
[403834056,1769578103899,955.89913636,0.00014884,2]
[403834057,1769578104012,926.47041239,0.00014884,2]
[403834058,1769578112297,200.08401333,0.00014883,2]
[403834059,1769578112357,500.0,0.00014883,2]
[403834060,1769578112423,231.81318555,0.00014883,2]
[403834061,1769578112470,449.5579793,0.00014883,2]
[403834062,1769578115884,500.0,0.00014883,2]
[403834063,1769578115952,500.0,0.00014883,2]
[403834064,1769578116034,500.0,0.00014883,2]
[403834065,1769578116096,356.2518431,0.00014883,2]
[403834066,1769578116156,500.0,0.00014883,2]
[403834067,1769578116223,175.70362962,0.00014883,2]
[403834068,1769578116280,500.0,0.00014883,2]
[403834069,1769578116335,500.0,0.00014883,2]
[403834070,1769578116427,368.38378591,0.00014883,2]
[403834071,1769578117556,500.0,0.00014883,2]
[403834072,1769578117699,500.0,0.00014883,2]
[403834073,1769578117779,500.0,0.00014883,2]
[403834074,1769578117825,155.62460253,0.00014883,2]
[403834075,1769578117852,344.37539747,0.00014883,2]
[403834076,1769578117935,500.0,0.00014883,2]
[403834077,1769578118057,500.0,0.00014883,2]
[403834078,1769578118112,500.0,0.00014883,2]
[403834079,1769578118163,500.0,0.00014883,2]
[403834080,1769578118219,500.0,0.00014883,2]
[403834081,1769578118302,500.0,0.00014883,2]
[403834082,1769578118356,500.0,0.00014883,2]
[403834083,1769578118415,500.0,0.00014883,2]
[403834084,1769578118503,500.0,0.00014883,2]
[403834085,1769578118558,500.0,0.00014883,2]
[403834086,1769578118609,500.0,0.00014883,2]
[403834087,1769578118667,500.0,0.00014883,2]
[403834088,1769578118717,500.0,0.00014883,2]
[403834089,1769578118797,537.90609174,0.00014883,2]
[403834090,1769578118876,500.0,0.00014883,2]
[403834091,1769578122423,339.0,0.0001,4]
[403834092,1769578141388,300.0,0.00014883,2]
[403834093,1769578149787,657.39257503,0.00014883,2]
[403834094,1769578149829,657.39257503,0.00014883,2]
[403834095,1769578149881,502.94336073,0.00014883,2]
[403834096,1769578149913,154.4492143,0.00014883,2]
[403834097,1769578149955,657.39257503,0.00014883,2]
[403834098,1769578149997,657.39257503,0.00014883,2]
[403834099,1769578150039,657.39257503,0.00014883,2]
[403834100,1769578150080,657.39257503,0.00014883,2]
[403834101,1769578150132,657.39257503,0.00014883,2]
[403834102,1769578150519,657.39257503,0.00014883,2]
[403834103,1769578150565,657.39257503,0.00014883,2]
[403834104,1769578150604,657.39257503,0.00014883,2]
[403834105,1769578150648,657.39257503,0.00014883,2]
[403834106,1769578150689,657.39257503,0.00014883,2]
[403834107,1769578150737,657.39257503,0.00014883,2]
[403834108,1769578150781,657.39257503,0.00014883,2]
[403834109,1769578150821,657.39257503,0.00014883,2]
[403834110,1769578150865,657.39257503,0.00014883,2]
[403834111,1769578150908,642.06473528,0.00014883,2]
[403834112,1769578150937,15.32783975,0.00014883,2]
[403834113,1769578150982,657.39257503,0.00014883,2]
[403834114,1769578151029,657.39257503,0.00014883,2]
[403834115,1769578151075,657.39257503,0.00014883,2]
[403834116,1769578151123,657.39257503,0.00014883,2]
[403834117,1769578151169,657.39257503,0.00014883,2]
[403834118,1769578151210,657.39257503,0.00014883,2]
[403834119,1769578151256,657.39257503,0.00014883,2]
[403834120,1769578151310,657.39257503,0.00014883,2]
[403834121,1769578151358,657.39257503,0.00014883,2]
[403834122,1769578151403,657.39257503,0.00014883,2]
[403834123,1769578151455,657.39257503,0.00014883,2]
[403834124,1769578151501,657.39257503,0.00014883,2]
[403834125,1769578151547,657.39257503,0.00014883,2]
[403834126,1769578151594,657.39257503,0.00014883,2]
[403834127,1769578151642,657.39257503,0.00014883,2]
[403834128,1769578151703,123.7935348,0.00014883,2]
[403834129,1769578151733,533.59904023,0.00014883,2]
[403834130,1769578151781,657.39257503,0.00014883,2]
[403834131,1769578151824,657.39257503,0.00014883,2]
[403834132,1769578151866,657.39257503,0.00014883,2]
[403834133,1769578151931,657.39257503,0.00014883,2]
[403834134,1769578151972,657.39257503,0.00014883,2]
[403834135,1769578152014,657.39257503,0.00014883,2]
[403834136,1769578152055,657.39257503,0.00014883,2]
[403834137,1769578152122,657.39257503,0.00014883,2]
[403834138,1769578152163,657.39257503,0.00014883,2]
[403834139,1769578167198,675.6534799,0.00014883,2]
[403834140,1769578167242,675.6534799,0.00014883,2]
[403834141,1769578167286,675.6534799,0.00014883,2]
[403834142,1769578167335,675.6534799,0.00014883,2]
[403834143,1769578167380,675.6534799,0.00014883,2]
[403834144,1769578167435,171.610385,0.00014883,2]
[403834145,1769578167463,504.0430949,0.00014883,2]
[403834146,1769578167512,675.6534799,0.00014883,2]
[403834147,1769578167555,675.6534799,0.00014883,2]
[403834148,1769578167603,675.6534799,0.00014883,2]
[403834149,1769578167658,675.6534799,0.00014883,2]
[403834150,1769578167702,675.6534799,0.00014883,2]
[403834151,1769578167792,675.6534799,0.00014883,2]
[403834152,1769578167839,675.6534799,0.00014883,2]
[403834153,1769578167883,675.6534799,0.00014883,2]
[403834154,1769578167927,675.6534799,0.00014883,2]
[403834155,1769578167966,675.6534799,0.00014883,2]
[403834156,1769578168017,675.6534799,0.00014883,2]
[403834157,1769578168065,675.6534799,0.00014883,2]
[403834158,1769578168107,675.6534799,0.00014883,2]
[403834159,1769578168153,675.6534799,0.00014883,2]
[403834160,1769578168197,36.8181865,0.00014883,2]
[403834161,1769578168228,638.8352934,0.00014883,2]
[403834162,1769578168278,675.6534799,0.00014883,2]
[403834163,1769578168339,675.6534799,0.00014883,2]
[403834164,1769578168393,675.6534799,0.00014883,2]
[403834165,1769578168461,675.6534799,0.00014883,2]
[403834166,1769578168510,675.6534799,0.00014883,2]
[403834167,1769578168582,675.6534799,0.00014883,2]
[403834168,1769578168626,675.6534799,0.00014883,2]
[403834169,1769578201532,192.0,0.00014883,2]
[403834170,1769578201569,1200.0,0.00014883,2]
[403834171,1769578201608,249.0,0.00014883,2]
[403834172,1769578202417,150.0,0.00014883,2]
[403834174,1769578204696,180.49,0.00014874,2]
[403834175,1769578204904,180.49,0.00014874,2]
[403834176,1769578205119,180.49,0.00014874,2]
[403834185,1769578231328,-23433.07561304,0.00014884,2]
[403834188,1769578231340,-1159.94357071,0.00014884,2]
[403834193,1769578231385,-1095.14892138,0.00014884,2]
[403834195,1769578231445,-1612.39440711,0.00014884,2]
[403834196,1769578231458,-871.14161176,0.00014884,2]
[403834197,1769578231468,-477.49208952,0.00014884,2]
[403834198,1769578231503,-95033.75964186,0.00014884,2]
[403834199,1769578231515,-34483.41694682,0.00014884,2]
[403834200,1769578231526,-15425.27006045,0.00014884,2]
[403834201,1769578231537,-3037.07724405,0.00014884,2]
[403834202,1769578231548,-612.78854042,0.00014884,2]
[403834203,1769578231560,-2072.44626956,0.00014884,2]
[403834440,1769578237467,-919.38,0.00014884,2]
[403834441,1769578237486,-634.83263981,0.00014884,2]
[403834442,1769578237499,-1172.96774003,0.00014884,2]
[403834443,1769578237511,-873.39,0.00014884,2]
[403834444,1769578237524,-405.31094203,0.00014884,2]
[403834445,1769578237548,-115449.46432786,0.00014884,2]
[403834446,1769578237559,-246422.35067635,0.00014884,2]
[403834447,1769578237576,-1841.6,0.00014884,2]
[403834448,1769578237593,-4081.51319785,0.00014884,2]
[403834449,1769578237605,-1316.2203478,0.00014884,2]
[403834454,1769578239513,-1040.20968387,0.00014884,2]
[403834455,1769578239571,-193582.44421791,0.00014884,2]
[403834456,1769578239581,-33266.4327,0.00014892,2]
[403834457,1769578239591,-195.0,0.00014892,2]
[403834458,1769578239605,-2387.52939455,0.000149,2]
[403834459,1769578239615,-189.43,0.000149,2]
[403834460,1769578239625,-394.19,0.00014974,2]
[403834461,1769578239635,-233.47923404,0.00014978,2]
[403834462,1769578239646,-336.21,0.00014982,2]
[403834463,1769578239656,-500.0,0.00014983,2]
[403834464,1769578239666,-200.0,0.00014983,2]
[403834465,1769578239677,-210.28593512,0.00014983,2]
[403834466,1769578239688,-200.0,0.00014983,2]
[403834467,1769578239698,-500.0,0.00014983,2]
[403834468,1769578239708,-500.0,0.00014983,2]
[403834469,1769578239718,-500.0,0.00014983,2]
[403834470,1769578239727,-500.0,0.00014983,2]
[403834471,1769578239737,-500.0,0.00014983,2]
[403834472,1769578239748,-500.0,0.00014983,2]
[403834473,1769578239758,-500.0,0.00014983,2]
[403834474,1769578239768,-500.0,0.00014983,2]
[403834475,1769578239778,-500.0,0.00014983,2]
[403834476,1769578239787,-500.0,0.00014983,2]
[403834477,1769578239797,-500.0,0.00014983,2]
[403834478,1769578239807,-151.0,0.00014983,2]
[403834479,1769578239817,-500.0,0.00014983,2]
[403834480,1769578239826,-151.0,0.00014983,2]
[403834481,1769578239836,-500.0,0.00014983,2]
[403834482,1769578239845,-151.0,0.00014983,2]
[403834483,1769578239855,-500.0,0.00014983,2]
[403834484,1769578239865,-151.0,0.00014983,2]
[403834485,1769578239874,-500.0,0.00014983,2]
[403834486,1769578239884,-151.0,0.00014983,2]
[403834487,1769578239895,-500.0,0.00014983,2]
[403834488,1769578239904,-151.0,0.00014983,2]
[403834489,1769578239915,-500.0,0.00014983,2]
[403834490,1769578239924,-151.0,0.00014983,2]
[403834491,1769578239935,-500.0,0.00014983,2]
[403834492,1769578239946,-200.0,0.00014983,2]
[403834493,1769578239960,-151.0,0.00014983,2]
[403834494,1769578239970,-500.0,0.00014983,2]
[403834495,1769578239980,-151.0,0.00014983,2]
[403834496,1769578239990,-500.0,0.00014983,2]
[403834497,1769578240000,-151.0,0.00014983,2]
[403834498,1769578240010,-500.0,0.00014983,2]
[403834499,1769578240019,-500.0,0.00014983,2]
[403834500,1769578240029,-151.0,0.00014983,2]
[403834501,1769578240041,-500.0,0.00014991,2]
[403834502,1769578240050,-500.0,0.00014991,2]
[403834503,1769578240060,-500.0,0.00014991,2]
[403834504,1769578240070,-500.0,0.00014991,2]
[403834505,1769578240082,-134734.9888892,0.00014992,2]
[403834506,1769578240092,-154.5499553,0.00014992,2]
[403834507,1769578240102,-73615.2670801,0.00014992,2]
[403834508,1769578240112,-1000.0,0.00014998,2]
[403834509,1769578240122,-151.0,0.00014998,2]
[403834510,1769578240131,-151.0,0.00014998,2]
[403834511,1769578240141,-556.24166165,0.00015,2]
[403834512,1769578240156,-1337.10276872,0.00015,2]
[403834513,1769578240167,-607.738324,0.00015015,2]
[403834514,1769578240177,-3240.0,0.00015028,2]
[403834515,1769578240187,-1852.42,0.00015028,2]
[403834516,1769578240196,-150.00222141,0.00015077,2]
[403834517,1769578240205,-500.0,0.00015097,2]
[403834518,1769578240214,-509.33160404,0.00015097,2]
[403834519,1769578240224,-510.50875951,0.00015097,2]
[403834520,1769578240234,-214.33401848,0.00015097,2]
[403834521,1769578240244,-481.04,0.00015126,2]
[403834522,1769578240254,-325.91423618,0.00015226,2]
[403834523,1769578240264,-336.21,0.00015256,2]
[403834524,1769578240274,-508.90679538,0.00015265,2]
[403834525,1769578240284,-262.55520896,0.000153,2]
[403834526,1769578240294,-500.0,0.00015463,2]
[403834527,1769578240303,-500.0,0.00015463,2]
[403834528,1769578240313,-508.88989411,0.00015463,2]
[403834529,1769578240323,-151.0,0.00015471,2]
[403834530,1769578240332,-151.0,0.00015471,2]
[403834531,1769578240342,-151.0,0.00015472,2]
[403834532,1769578240351,-151.0,0.00015472,2]
[403834533,1769578240361,-151.0,0.00015473,2]
[403834534,1769578240370,-151.0,0.00015473,2]
[403834535,1769578240379,-200.0,0.000155,2]
[403834536,1769578240389,-152.0,0.000155,2]
[403834537,1769578240398,-151.0,0.000155,2]
[403834538,1769578240408,-1267.0,0.000155,2]
[403834539,1769578240417,-152.0,0.000155,2]
[403834540,1769578240426,-152.0,0.000155,2]
[403834541,1769578240436,-152.0,0.000155,2]
[403834542,1769578240446,-152.0,0.000155,2]
[403834543,1769578240457,-152.0,0.000155,2]
[403834544,1769578240466,-152.0,0.000155,2]
[403834545,1769578240476,-151.0,0.000155,2]
[403834546,1769578240486,-1267.0,0.000155,2]
[403834547,1769578240497,-152.0,0.000155,2]
[403834548,1769578240507,-151.0,0.000155,2]
[403834549,1769578240521,-152.0,0.000155,2]
[403834550,1769578240531,-151.0,0.000155,2]
[403834551,1769578240542,-1267.0,0.000155,2]
[403834552,1769578240552,-151.0,0.000155,2]
[403834553,1769578240562,-151.0,0.000155,2]
[403834554,1769578240571,-151.0,0.000155,2]
[403834555,1769578240581,-152.0,0.000155,2]
[403834556,1769578240591,-151.0,0.000155,2]
[403834557,1769578240600,-152.0,0.000155,2]
[403834558,1769578240610,-151.0,0.000155,2]
[403834559,1769578240619,-151.0,0.000155,2]
[403834560,1769578240629,-152.0,0.000155,2]
[403834561,1769578240639,-151.0,0.000155,2]
[403834562,1769578240649,-151.0,0.000155,2]
[403834563,1769578240658,-1267.0,0.000155,2]
[403834564,1769578240668,-152.0,0.000155,2]
[403834565,1769578240677,-151.0,0.000155,2]
[403834566,1769578240687,-1267.0,0.000155,2]
[403834567,1769578240696,-151.0,0.000155,2]
[403834568,1769578240706,-152.0,0.000155,2]
[403834569,1769578240718,-151.0,0.000155,2]
[403834570,1769578240728,-151.0,0.000155,2]
[403834571,1769578240738,-1267.0,0.000155,2]
[403834572,1769578240747,-151.0,0.000155,2]
[403834573,1769578240757,-151.0,0.000155,2]
[403834574,1769578240767,-151.0,0.000155,2]
[403834575,1769578240777,-151.0,0.000155,2]
[403834576,1769578240786,-1267.0,0.000155,2]
[403834577,1769578240796,-151.0,0.000155,2]
[403834578,1769578240806,-1267.0,0.000155,2]
[403834579,1769578240817,-151.0,0.000155,2]
[403834580,1769578240826,-1267.0,0.000155,2]
[403834581,1769578240836,-1267.0,0.000155,2]
[403834582,1769578240846,-151.0,0.000155,2]
[403834583,1769578240855,-1267.0,0.000155,2]
[403834584,1769578240864,-151.0,0.000155,2]
[403834585,1769578240874,-152.50126102,0.000155,2]
[403834586,1769578240883,-1267.0,0.000155,2]
[403834587,1769578240892,-1267.0,0.000155,2]
[403834588,1769578240901,-1267.0,0.000155,2]
[403834589,1769578240911,-166.0,0.000155,2]
[403834590,1769578240920,-1267.0,0.000155,2]
[403834591,1769578240929,-170.47665606,0.000155,2]
[403834592,1769578240939,-1267.0,0.000155,2]
[403834593,1769578240950,-1267.0,0.000155,2]
[403834594,1769578240960,-1267.0,0.000155,2]
[403834595,1769578240969,-1267.0,0.000155,2]
[403834596,1769578240979,-1267.0,0.000155,2]
[403834597,1769578240989,-1267.0,0.000155,2]
[403834598,1769578240998,-1267.0,0.000155,2]
[403834599,1769578241008,-1267.0,0.000155,2]
[403834600,1769578241018,-1267.0,0.000155,2]
[403834601,1769578241028,-158.0,0.000155,2]
[403834602,1769578241037,-151.0,0.000155,2]
[403834603,1769578241047,-151.0,0.000155,2]
[403834604,1769578241056,-166.66,0.00015523,2]
[403834605,1769578241066,-336.21,0.0001553,2]
[403834606,1769578241076,-500.0,0.00015531,2]
[403834607,1769578241085,-255.27257705,0.00015531,2]
[403834608,1769578241104,-325.91423618,0.0001556,2]
[403834609,1769578241114,-200.0,0.00015655,2]
[403834610,1769578241124,-394.19,0.00015723,2]
[403834611,1769578241134,-28341.63371802,0.00015767,2]
[403834612,1769578241144,-336.21,0.00015804,2]
[403834613,1769578241153,-200.0,0.00015812,2]
[403834614,1769578241163,-502.0,0.00015836,2]
[403834615,1769578241172,-5021.32,0.00015848,2]
[403834616,1769578241182,-166.66,0.0001585,2]
[403834617,1769578241192,-1000.0,0.00015852,2]
[403834618,1769578241202,-325.91423618,0.00015895,2]
[403834619,1769578241211,-173.54,0.0001599,2]
[403834620,1769578241221,-59093.7017155,0.00016,4]
[403834621,1769578241231,-12694.28,0.00016014,2]
[403834622,1769578241240,-255.0,0.00016015,2]
[403834623,1769578241250,-336.21,0.00016078,2]
[403834624,1769578241259,-500.0,0.00016079,2]
[403834625,1769578241270,-235.10107836,0.00016121,2]
[403834626,1769578241280,-1500.0,0.00016123,2]
[403834627,1769578241289,-371.75947918,0.00016145,2]
[403834628,1769578241299,-166.66,0.00016177,2]
[403834629,1769578241309,-5000.00884057,0.000162,5]
[403834630,1769578241319,-13015.81,0.00016211,2]
[403834631,1769578241328,-1108.9,0.00016221,2]
[403834632,1769578241338,-325.91423618,0.00016229,2]
[403834633,1769578241348,-201.04,0.00016245,2]
[403834634,1769578241357,-1231.93,0.00016274,2]
[403834635,1769578241881,-559.04,0.00016274,2]
[403834636,1769578241891,-363.41,0.00016274,2]
[403834637,1769578241901,-559.04,0.00016274,2]
[403834638,1769578241910,-1231.93,0.00016274,2]
[403834639,1769578241919,-172.27,0.00016274,2]
[403834640,1769578241928,-1262.77,0.00016274,2]
[403834641,1769578241937,-570.56,0.00016274,2]
[403834642,1769578241946,-172.27,0.00016274,2]
[403834643,1769578241955,-200.0,0.00016283,2]
[403834644,1769578241964,-1680.0,0.00016372,2]
[403834645,1769578241973,-193.55647902,0.00016373,2]
[403834646,1769578241983,-195.0,0.00016373,2]
[403834647,1769578241992,-250.0,0.00016373,2]
[403834648,1769578242001,-285.58275354,0.00016416,2]
[403834649,1769578242010,-500.0,0.00016438,2]
[403834650,1769578242020,-500.0,0.00016438,2]
[403834651,1769578242029,-500.0,0.00016438,2]
[403834652,1769578242039,-500.0,0.00016438,2]
[403834653,1769578242047,-500.0,0.00016438,2]
[403834654,1769578242057,-500.0,0.00016438,2]
[403834655,1769578242066,-500.0,0.00016438,2]
[403834656,1769578242075,-500.0,0.00016438,2]
[403834657,1769578242088,-500.0,0.00016438,2]
[403834658,1769578242097,-500.0,0.00016438,2]
[403834659,1769578242106,-500.0,0.00016438,2]
[403834660,1769578242116,-500.0,0.00016438,2]
[403834661,1769578242127,-500.0,0.00016438,2]
[403834662,1769578242136,-500.0,0.00016438,2]
[403834663,1769578242147,-500.0,0.00016438,2]
[403834664,1769578242157,-244.58632542,0.00016438,2]
[403834665,1769578242167,-500.0,0.00016438,2]
[403834666,1769578242176,-500.0,0.00016438,2]
[403834667,1769578242187,-500.0,0.00016438,2]
[403834668,1769578242195,-500.0,0.00016438,2]
[403834669,1769578242204,-500.0,0.00016438,2]
[403834670,1769578242213,-500.0,0.00016438,2]
[403834671,1769578242223,-500.0,0.00016438,2]
[403834672,1769578242233,-500.0,0.00016438,2]
[403834673,1769578242242,-500.0,0.00016438,2]
[403834674,1769578242252,-500.0,0.00016438,2]
[403834675,1769578242262,-500.0,0.00016438,2]
[403834676,1769578242271,-500.0,0.00016438,2]
[403834677,1769578242281,-500.0,0.00016438,2]
[403834678,1769578242290,-500.0,0.00016438,2]
[403834679,1769578242299,-500.0,0.00016438,2]
[403834680,1769578242308,-500.0,0.00016438,2]
[403834681,1769578242317,-500.0,0.00016438,2]
[403834682,1769578242327,-500.0,0.00016438,2]
[403834683,1769578242337,-500.0,0.00016438,2]
[403834684,1769578242346,-500.0,0.00016438,2]
[403834685,1769578242354,-500.0,0.00016438,2]
[403834686,1769578242365,-500.0,0.00016438,2]
[403834687,1769578242375,-500.0,0.00016438,2]
[403834688,1769578242385,-500.0,0.00016438,2]
[403834689,1769578242395,-500.0,0.00016438,2]
[403834690,1769578242404,-500.0,0.00016438,2]
[403834691,1769578242414,-500.0,0.00016438,2]
[403834692,1769578242423,-500.0,0.00016438,2]
[403834693,1769578242433,-500.0,0.00016438,2]
[403834694,1769578242442,-500.0,0.00016438,2]
[403834695,1769578242455,-500.0,0.00016438,2]
[403834696,1769578242468,-500.0,0.00016438,2]
[403834699,1769578242477,-500.0,0.00016438,2]
[403834701,1769578242487,-500.0,0.00016438,2]
[403834703,1769578242495,-500.0,0.00016438,2]
[403834704,1769578242504,-500.0,0.00016438,2]
[403834706,1769578242515,-500.0,0.00016438,2]
[403834708,1769578242525,-500.0,0.00016438,2]
[403834710,1769578242535,-500.0,0.00016438,2]
[403834712,1769578242544,-266.06514727,0.00016438,2]
[403834713,1769578242554,-1114.0,0.00016438,2]
[403834714,1769578242563,-1864.0,0.00016438,2]
[403834715,1769578242572,-150.00222141,0.0001646,2]